fUST/lending_fUST_20250929
["ID","MTS","AMOUNT","RATE_DAILY","PERIOD"]
[388340188,1759105848355,-151.0,0.00027671,7]
[388340190,1759105848365,-894.2,0.00027671,7]
[388340191,1759105848375,-250.829168,0.00027671,7]
[388340192,1759105848384,-480.0,0.00027671,7]
[388340193,1759105848393,-480.0,0.00027671,7]
[388340194,1759105848403,-151.0,0.00027671,7]
[388340195,1759105848411,-480.0,0.00027671,7]
[388340196,1759105848420,-557.71,0.00027671,7]
[388340197,1759105848430,-151.0,0.00027671,7]
[388340198,1759105848440,-159.302109,0.00027671,7]
[388340199,1759105848449,-490.39261924,0.00027671,7]
[388340200,1759105848459,-480.0,0.00027671,7]
[388340201,1759105848468,-151.0,0.00027671,7]
[388340202,1759105848478,-480.0,0.00027671,7]
[388340203,1759105848487,-468.20260769,0.00027671,7]
[388340204,1759105848496,-480.0,0.00027671,7]
[388340205,1759105848506,-151.0,0.00027671,7]
[388340206,1759105848515,-151.0,0.00027671,7]
[388340207,1759105848524,-490.21,0.00027671,7]
[388340208,1759105848534,-480.0,0.00027671,7]
[388340209,1759105848543,-151.0,0.00027671,7]
[388340210,1759105848553,-480.0,0.00027671,7]
[388340211,1759105848563,-802.02,0.00027671,7]
[388340212,1759105848572,-751.76,0.00027671,7]
[388340213,1759105848581,-677.45,0.00027671,7]
[388340214,1759105848592,-480.0,0.00027671,7]
[388340215,1759105848602,-895.2,0.00027671,7]
[388340216,1759105848611,-1187.12,0.00027671,7]
[388340217,1759105848621,-480.0,0.00027671,7]
[388340218,1759105848631,-480.0,0.00027671,7]
[388340219,1759105848641,-480.0,0.00027671,7]
[388340220,1759105848650,-746.21,0.00027671,7]
[388340221,1759105848660,-957.81,0.00027671,7]
[388340222,1759105848669,-480.0,0.00027671,7]
[388340223,1759105848679,-480.0,0.00027671,7]
[388340224,1759105848688,-1058.71,0.00027671,7]
[388340225,1759105848698,-480.0,0.00027671,7]
[388340226,1759105848707,-480.0,0.00027671,7]
[388340227,1759105848717,-480.0,0.00027671,7]
[388340228,1759105848726,-699.9,0.00027671,7]
[388340229,1759105848736,-859.96,0.00027671,7]
[388340230,1759105848745,-445.417035,0.00027671,7]
[388340231,1759105848754,-445.417035,0.00027671,7]
[388340232,1759105848763,-341.92518,0.00027671,7]
[388340233,1759105848773,-341.92518,0.00027671,7]
[388340234,1759105848782,-445.417035,0.00027671,7]
[388340235,1759105848792,-151.0,0.00027671,7]
[388340236,1759105848802,-341.92518,0.00027671,7]
[388340237,1759105848811,-821.96,0.00027671,7]
[388340238,1759105848820,-445.417035,0.00027671,7]
[388340239,1759105848829,-151.0,0.00027671,7]
[388340240,1759105848839,-341.92518,0.00027671,7]
[388340241,1759105848848,-480.0,0.00027671,7]
[388340242,1759105848857,-480.0,0.00027671,7]
[388340243,1759105848868,-480.0,0.00027671,7]
[388340244,1759105848877,-844.77,0.00027671,7]
[388340245,1759105848886,-610.61,0.00027671,7]
[388340246,1759105848896,-564.59513857,0.00027671,7]
[388340247,1759105848905,-480.0,0.00027671,7]
[388340248,1759105848914,-675.37,0.00027671,7]
[388340249,1759105848923,-2335.09,0.00027671,7]
[388340250,1759105848932,-559.25,0.00027671,7]
[388340251,1759105848942,-480.0,0.00027671,7]
[388340252,1759105848952,-480.0,0.00027671,7]
[388340253,1759105848962,-1519.01,0.00027671,7]
[388340254,1759105848971,-480.0,0.00027671,7]
[388340255,1759105848981,-1238.8,0.00027671,7]
[388340256,1759105848992,-480.0,0.00027671,7]
[388340257,1759105849002,-480.0,0.00027671,7]
[388340258,1759105849012,-628.11,0.00027671,7]
[388340259,1759105849021,-480.0,0.00027671,7]
[388340260,1759105849031,-497.703231,0.00027671,7]
[388340261,1759105849040,-497.703231,0.00027671,7]
[388340262,1759105849050,-714.06,0.00027671,7]
[388340263,1759105849060,-480.0,0.00027671,7]
[388340264,1759105849070,-151.0,0.00027671,7]
[388340265,1759105849080,-497.703231,0.00027671,7]
[388340266,1759105849090,-151.0,0.00027671,7]
[388340267,1759105849100,-497.703231,0.00027671,7]
[388340268,1759105849109,-319.55031309,0.00027671,7]
[388340269,1759105849119,-573.76,0.00027671,7]
[388340270,1759105849128,-480.0,0.00027671,7]
[388340271,1759105849138,-480.0,0.00027671,7]
[388340272,1759105849148,-730.62,0.00027671,7]
[388340273,1759105849158,-151.0,0.00027671,7]
[388340274,1759105849168,-550.3,0.00027671,7]
[388340275,1759105849177,-480.0,0.00027671,7]
[388340276,1759105849187,-386.193848,0.00027671,7]
[388340277,1759105849196,-386.193848,0.00027671,7]
[388340278,1759105849206,-500.0,0.00027671,7]
[388340279,1759105849220,-480.0,0.00027671,7]
[388340280,1759105849229,-386.193848,0.00027671,7]
[388340281,1759105849239,-480.0,0.00027671,7]
[388340282,1759105849248,-153.954294,0.00027671,7]
[388340283,1759105849259,-386.193848,0.00027671,7]
[388340284,1759105849268,-480.0,0.00027671,7]
[388340285,1759105849277,-151.0,0.00027671,7]
[388340286,1759105849288,-153.954294,0.00027671,7]
[388340287,1759105849298,-151.0,0.00027671,7]
[388340288,1759105849307,-151.0,0.00027671,7]
[388340289,1759105849317,-153.954294,0.00027671,7]
[388340290,1759105849326,-151.0,0.00027671,7]
[388340291,1759105849335,-153.954294,0.00027671,7]
[388340292,1759105849345,-1097.12,0.00027671,7]
[388340293,1759105849355,-151.0,0.00027671,7]
[388340294,1759105849365,-739.74,0.00027671,7]
[388340295,1759105849374,-151.0,0.00027671,7]
[388340296,1759105849384,-480.0,0.00027671,7]
[388340297,1759105849393,-2615.9,0.00027671,7]
[388340298,1759105849403,-480.0,0.00027671,7]
[388340299,1759105849413,-480.0,0.00027671,7]
[388340300,1759105849422,-530.44,0.00027671,7]
[388340301,1759105849430,-669.57,0.00027671,7]
[388340302,1759105849440,-480.0,0.00027671,7]
[388340303,1759105849449,-480.0,0.00027671,7]
[388340304,1759105849458,-742.0,0.00027671,7]
[388340305,1759105849468,-550.51,0.00027671,7]
[388340306,1759105849477,-151.0,0.00027671,7]
[388340307,1759105849487,-1343.85,0.00027671,7]
[388340308,1759105849496,-2626.68,0.00027671,7]
[388340309,1759105849505,-856.4,0.00027671,7]
[388340310,1759105849514,-765.84,0.00027671,7]
[388340311,1759105849524,-158.252956,0.00027671,7]
[388340312,1759105849534,-480.0,0.00027671,7]
[388340313,1759105849543,-158.252956,0.00027671,7]
[388340314,1759105849554,-158.252956,0.00027671,7]
[388340315,1759105849563,-1676.42,0.00027671,7]
[388340316,1759105849574,-1052.34,0.00027671,7]
[388340317,1759105849583,-158.252956,0.00027671,7]
[388340318,1759105849593,-871.47,0.00027671,7]
[388340319,1759105849603,-480.0,0.00027671,7]
[388340320,1759105849612,-480.0,0.00027671,7]
[388340321,1759105849622,-151.0,0.00027671,7]
[388340322,1759105849631,-480.0,0.00027671,7]
[388340323,1759105849641,-151.0,0.00027671,7]
[388340324,1759105849651,-1087.75,0.00027671,7]
[388340325,1759105849660,-1132.63,0.00027671,7]
[388340326,1759105849670,-690.79,0.00027671,7]
[388340327,1759105849682,-251.337169,0.00027671,7]
[388340328,1759105849692,-265.03487,0.00027671,7]
[388340329,1759105849702,-353.36632249,0.00027671,7]
[388340330,1759105849711,-151.0,0.00027671,7]
[388340331,1759105849721,-480.0,0.00027671,7]
[388340332,1759105849730,-738.38,0.00027671,7]
[388340333,1759105849740,-472.4210802,0.00027671,7]
[388340334,1759105849750,-835.83,0.00027671,7]
[388340335,1759105849759,-480.0,0.00027671,7]
[388340336,1759105849768,-664.76,0.00027671,7]
[388340337,1759105849777,-151.0,0.00027671,7]
[388340338,1759105849787,-151.0,0.00027671,7]
[388340339,1759105849797,-151.0,0.00027671,7]
[388340340,1759105849806,-480.0,0.00027671,7]
[388340341,1759105849816,-151.0,0.00027671,7]
[388340342,1759105849825,-987.98,0.00027671,7]
[388340343,1759105849835,-151.0,0.00027671,7]
[388340344,1759105849844,-480.0,0.00027671,7]
[388340345,1759105849854,-480.0,0.00027671,7]
[388340346,1759105849864,-575.03,0.00027671,7]
[388340347,1759105849874,-159.50755,0.00027671,7]
[388340348,1759105849883,-480.0,0.00027671,7]
[388340349,1759105849892,-480.0,0.00027671,7]
[388340350,1759105849902,-151.0,0.00027671,7]
[388340351,1759105849911,-528.91,0.00027671,7]
[388340352,1759105849921,-151.0,0.00027671,7]
[388340353,1759105849930,-151.0,0.00027671,7]
[388340354,1759105849940,-151.0,0.00027671,7]
[388340355,1759105849949,-151.0,0.00027671,7]
[388340356,1759105849958,-689.35,0.00027671,7]
[388340357,1759105849968,-480.0,0.00027671,7]
[388340358,1759105849977,-151.0,0.00027671,7]
[388340359,1759105849987,-639.9,0.00027671,7]
[388340360,1759105849997,-151.0,0.00027671,7]
[388340361,1759105850007,-770.58,0.00027671,7]
[388340362,1759105850018,-216.565055,0.00027671,7]
[388340363,1759105850028,-480.0,0.00027671,7]
[388340364,1759105850039,-480.0,0.00027671,7]
[388340365,1759105850050,-414.26066103,0.00027671,7]
[388340366,1759105850060,-480.0,0.00027671,7]
[388340367,1759105850070,-480.0,0.00027671,7]
[388340368,1759105850081,-488.26,0.00027671,7]
[388340369,1759105850091,-892.47,0.00027671,7]
[388340370,1759105850101,-761.34,0.00027671,7]
[388340371,1759105850111,-3288.31,0.00027671,7]
[388340372,1759105850123,-1407.8,0.00027671,7]
[388340373,1759105850132,-202.47388,0.00027671,7]
[388340374,1759105850143,-480.0,0.00027671,7]
[388340375,1759105850154,-480.0,0.00027671,7]
[388340376,1759105850167,-202.47388,0.00027671,7]
[388340377,1759105850178,-202.47388,0.00027671,7]
[388340378,1759105850188,-480.0,0.00027671,7]
[388340379,1759105850198,-202.47388,0.00027671,7]
[388340380,1759105850208,-1884.04,0.00027671,7]
[388340381,1759105850221,-645.01,0.00027671,7]
[388340382,1759105850232,-151.0,0.00027671,7]
[388340384,1759105850241,-480.0,0.00027671,7]
[388340385,1759105850251,-3064.92,0.00027671,7]
[388340386,1759105850261,-480.0,0.00027671,7]
[388340388,1759105850271,-480.0,0.00027671,7]
[388340389,1759105850326,-480.0,0.00027671,7]
[388340392,1759105850336,-846.75,0.00027671,7]
[388340393,1759105850345,-576.94,0.00027671,7]
[388340395,1759105850354,-835.43,0.00027671,7]
[388340396,1759105850363,-1704.89,0.00027671,7]
[388340397,1759105850373,-480.0,0.00027671,7]
[388340398,1759105850382,-480.0,0.00027671,7]
[388340399,1759105850391,-480.0,0.00027671,7]
[388340400,1759105850400,-906.61,0.00027671,7]
[388340401,1759105850410,-628.95,0.00027671,7]
[388340402,1759105850418,-480.0,0.00027671,7]
[388340403,1759105850427,-480.0,0.00027671,7]
[388340404,1759105850435,-480.0,0.00027671,7]
[388340405,1759105850445,-2829.7,0.00027671,7]
[388340406,1759105850455,-1513.591181,0.00027671,7]
[388340407,1759105850464,-160.0,0.00027671,3]
[388340408,1759105850473,-1513.591181,0.00027671,7]
[388340409,1759105850482,-480.0,0.00027671,7]
[388340410,1759105850491,-1513.591181,0.00027671,7]
[388340411,1759105850500,-151.0,0.00027671,7]
[388340412,1759105850509,-1513.591181,0.00027671,7]
[388340413,1759105850518,-151.0,0.00027671,7]
[388340414,1759105850527,-151.0,0.00027671,7]
[388340415,1759105850537,-619.35,0.00027671,7]
[388340416,1759105850546,-480.0,0.00027671,7]
[388340417,1759105850556,-1463.01,0.00027671,7]
[388340418,1759105850565,-621.97,0.00027671,7]
[388340419,1759105850575,-480.0,0.00027671,7]
[388340420,1759105850584,-4584.3,0.00027671,7]
[388340421,1759105850594,-2945.26,0.00027671,7]
[388340422,1759105850603,-480.0,0.00027671,7]
[388340423,1759105850612,-678.12,0.00027671,7]
[388340424,1759105850621,-480.0,0.00027671,7]
[388340425,1759105850630,-151.0,0.00027671,7]
[388340426,1759105850639,-480.0,0.00027671,7]
[388340427,1759105850648,-151.0,0.00027671,7]
[388340428,1759105850657,-2675.78,0.00027671,7]
[388340429,1759105850667,-650.93,0.00027671,7]
[388340430,1759105850677,-2251.0080839,0.00027671,7]
[388340431,1759105850973,-993.0919161,0.00027671,7]
[388340432,1759105850983,-1714.743485,0.00027671,7]
[388340433,1759105850993,-721.94,0.00027671,7]
[388340434,1759105851003,-480.0,0.00027671,7]
[388340435,1759105851012,-1714.743485,0.00027671,7]
[388340436,1759105851022,-753.96,0.00027671,7]
[388340437,1759105851030,-1809.44,0.00027671,7]
[388340438,1759105851039,-1714.743485,0.00027671,7]
[388340439,1759105851048,-436.5887643,0.00027671,7]
[388340440,1759105851058,-151.0,0.00027671,7]
[388340441,1759105851067,-1714.743485,0.00027671,7]
[388340442,1759105851077,-796.9,0.00027671,7]
[388340443,1759105851086,-153.412685,0.00027671,7]
[388340444,1759105851095,-723.68,0.00027671,7]
[388340445,1759105851104,-930.65,0.00027671,7]
[388340446,1759105851113,-6208.15,0.00027671,7]
[388340447,1759105851122,-1079.58,0.00027671,7]
[388340448,1759105851131,-1409.77,0.00027671,7]
[388340449,1759105851140,-151.0,0.00027671,7]
[388340450,1759105851149,-873.76,0.00027671,7]
[388340451,1759105851159,-151.0,0.00027671,7]
[388340452,1759105851168,-151.0,0.00027671,7]
[388340453,1759105851176,-480.0,0.00027671,7]
[388340454,1759105851186,-480.0,0.00027671,7]
[388340455,1759105851195,-151.0,0.00027671,7]
[388340456,1759105851205,-151.0,0.00027671,7]
[388340457,1759105851219,-480.0,0.00027671,7]
[388340458,1759105851228,-480.0,0.00027671,7]
[388340459,1759105851237,-151.0,0.00027671,7]
[388340460,1759105851246,-480.0,0.00027671,7]
[388340461,1759105851257,-480.0,0.00027671,7]
[388340462,1759105851266,-480.0,0.00027671,7]
[388340463,1759105851275,-151.0,0.00027671,7]
[388340464,1759105851286,-151.0,0.00027671,7]
[388340465,1759105851296,-6683.88,0.00027671,7]
[388340466,1759105851305,-530.42,0.00027671,7]
[388340467,1759105851314,-1075.35,0.00027671,7]
[388340468,1759105851323,-480.0,0.00027671,7]
[388340469,1759105851332,-726.57,0.00027671,7]
[388340470,1759105851342,-1270.22,0.00027671,7]
[388340471,1759105851351,-1171.99,0.00027671,7]
[388340472,1759105851360,-617.49,0.00027671,7]
[388340473,1759105851370,-799.68,0.00027671,7]
[388340474,1759105851379,-954.25,0.00027671,7]
[388340475,1759105851388,-480.0,0.00027671,7]
[388340476,1759105851397,-3545.73,0.00027671,7]
[388340477,1759105851406,-1291.38,0.00027671,7]
[388340478,1759105851416,-480.0,0.00027671,7]
[388340479,1759105851425,-1364.51,0.00027671,7]
[388340480,1759105851434,-1124.82,0.00027671,7]
[388340481,1759105851443,-696.65,0.00027671,7]
[388340482,1759105851453,-480.0,0.00027671,7]
[388340483,1759105851463,-662.89,0.00027671,7]
[388340484,1759105851472,-151.0,0.00027671,7]
[388340485,1759105851481,-1050.67,0.00027671,7]
[388340486,1759105851490,-151.0,0.00027671,7]
[388340487,1759105851499,-1632.31,0.00027671,7]
[388340488,1759105851509,-480.0,0.00027671,7]
[388340489,1759105851518,-151.0,0.00027671,7]
[388340490,1759105851528,-151.0,0.00027671,7]
[388340491,1759105851538,-3095.1,0.00027671,7]
[388340492,1759105851547,-1561.27,0.00027671,7]
[388340493,1759105851557,-480.0,0.00027671,7]
[388340494,1759105851566,-818.31,0.00027671,7]
[388340495,1759105851575,-151.0,0.00027671,7]
[388340496,1759105851585,-977.92,0.00027671,7]
[388340497,1759105851594,-480.0,0.00027671,7]
[388340498,1759105851603,-1031.88,0.00027671,7]
[388340499,1759105851612,-486.86,0.00027671,7]
[388340500,1759105851622,-365.499918,0.00027671,7]
[388340501,1759105851632,-613.53,0.00027671,7]
[388340502,1759105851641,-365.499918,0.00027671,7]
[388340503,1759105851650,-365.499918,0.00027671,7]
[388340504,1759105851659,-480.0,0.00027671,7]
[388340505,1759105851669,-365.499918,0.00027671,7]
[388340506,1759105851678,-646.4,0.00027671,7]
[388340507,1759105851688,-480.0,0.00027671,7]
[388340508,1759105851697,-480.0,0.00027671,7]
[388340509,1759105851705,-2183.76,0.00027671,7]
[388340510,1759105851715,-3321.81,0.00027671,7]
[388340511,1759105851725,-822.64,0.00027671,7]
[388340512,1759105851734,-480.0,0.00027671,7]
[388340513,1759105851743,-664.95,0.00027671,7]
[388340514,1759105851753,-480.0,0.00027671,7]
[388340515,1759105851762,-151.0,0.00027671,7]
[388340516,1759105851771,-480.0,0.00027671,7]
[388340517,1759105851781,-278.483308,0.00027671,7]
[388340518,1759105851790,-480.0,0.00027671,7]
[388340519,1759105851800,-480.0,0.00027671,7]
[388340520,1759105851809,-827.56,0.00027671,7]
[388340521,1759105851818,-480.0,0.00027671,7]
[388340522,1759105851827,-1335.59,0.00027671,7]
[388340523,1759105851836,-151.0,0.00027671,7]
[388340524,1759105851845,-1527.3,0.00027671,7]
[388340525,1759105851855,-2904.39,0.00027671,7]
[388340526,1759105851865,-480.0,0.00027671,7]
[388340527,1759105851875,-595.6,0.00027671,7]
[388340528,1759105851885,-151.0,0.00027671,7]
[388340529,1759105851894,-480.0,0.00027671,7]
[388340530,1759105851903,-480.0,0.00027671,7]
[388340531,1759105851913,-153.62719,0.00027671,7]
[388340532,1759105851923,-764.03,0.00027671,7]
[388340533,1759105851932,-811.55,0.00027671,7]
[388340534,1759105851941,-598.08,0.00027671,7]
[388340535,1759105851950,-6559.49,0.00027671,7]
[388340536,1759105851960,-480.0,0.00027671,7]
[388340537,1759105851970,-1374.93,0.00027671,7]
[388340538,1759105851979,-151.0,0.00027671,7]
[388340539,1759105851989,-151.0,0.00027671,7]
[388340540,1759105851999,-860.64,0.00027671,7]
[388340541,1759105852008,-1617.01,0.00027671,7]
[388340542,1759105852018,-402.50792916,0.00027671,7]
[388340543,1759105852027,-151.0,0.00027671,7]
[388340544,1759105852036,-2220.39,0.00027671,7]
[388340545,1759105852046,-1658.81,0.00027671,7]
[388340546,1759105852056,-151.0,0.00027671,7]
[388340547,1759105852066,-480.0,0.00027671,7]
[388340548,1759105852075,-714.51,0.00027671,7]
[388340549,1759105852085,-1369.86,0.00027671,7]
[388340550,1759105852095,-151.0,0.00027671,7]
[388340551,1759105852105,-3344.77,0.00027671,7]
[388340552,1759105852114,-480.0,0.00027671,7]
[388340553,1759105852125,-480.0,0.00027671,7]
[388340554,1759105852135,-3086.23,0.00027671,7]
[388340555,1759105852147,-2947.99,0.00027671,7]
[388340556,1759105852157,-1140.61,0.00027671,7]
[388340557,1759105852168,-480.0,0.00027671,7]
[388340558,1759105852178,-480.0,0.00027671,7]
[388340559,1759105852188,-152.537445,0.00027671,7]
[388340560,1759105852198,-151.0,0.00027671,7]
[388340561,1759105852210,-882.47,0.00027671,7]
[388340562,1759105852221,-1106.98,0.00027671,7]
[388340563,1759105852230,-480.0,0.00027671,7]
[388340564,1759105852239,-480.0,0.00027671,7]
[388340565,1759105852249,-617.75,0.00027671,7]
[388340566,1759105852258,-760.43,0.00027671,7]
[388340567,1759105852267,-491.37,0.00027671,7]
[388340568,1759105852277,-480.0,0.00027671,7]
[388340569,1759105852290,-1044.28,0.00027671,7]
[388340570,1759105852299,-582.62,0.00027671,7]
[388340571,1759105852309,-1716.63,0.00027671,7]
[388340572,1759105852318,-801.68,0.00027671,7]
[388340573,1759105852327,-480.0,0.00027671,7]
[388340574,1759105852337,-480.0,0.00027671,7]
[388340575,1759105852346,-14196.19,0.00027671,7]
[388340576,1759105852355,-480.0,0.00027671,7]
[388340577,1759105852364,-6293.73,0.00027671,7]
[388340578,1759105852374,-151.0,0.00027671,7]
[388340579,1759105852383,-582.08,0.00027671,7]
[388340580,1759105852393,-480.0,0.00027671,7]
[388340581,1759105852402,-4714.21,0.00027671,3]
[388340582,1759105852412,-480.0,0.00027671,7]
[388340583,1759105852422,-750.98,0.00027671,7]
[388340584,1759105852431,-480.0,0.00027671,7]
[388340585,1759105852441,-480.0,0.00027671,7]
[388340586,1759105852451,-616.11,0.00027671,7]
[388340587,1759105852462,-480.0,0.00027671,7]
[388340588,1759105852472,-589.54,0.00027671,7]
[388340589,1759105852481,-668.76532279,0.00027671,7]
[388340590,1759105853069,-0.01066443,0.00025201,2]
[388340591,1759105853100,-220.18741501,0.00025201,2]
[388340592,1759105853572,-43.18973171,0.00025205,7]
[388340637,1759105860943,-279.81258499,0.00025201,2]
[388340638,1759105861790,1440.2029745,0.00025201,2]
[388340639,1759105864248,-296.43717973,0.00025201,2]
[388340640,1759105867334,-27.67924358,0.00025201,2]
[388340642,1759105909757,500.0,0.000252,2]
[388340643,1759105909783,500.0,0.000252,2]
[388340644,1759105909855,500.0,0.000252,2]
[388340645,1759105926662,500.0,0.000252,2]
[388340646,1759105926838,488.01586244,0.000252,2]
[388340647,1759105926892,500.0,0.000252,2]
[388340648,1759105936679,500.0,0.000252,2]
[388340649,1759105936735,500.0,0.000252,2]
[388340650,1759105936806,386.5374639,0.000252,2]
[388340651,1759105936833,500.0,0.000252,2]
[388340652,1759105936862,274.2838477,0.000252,2]
[388340653,1759105940242,562.3521017,0.000252,2]
[388340654,1759105940299,500.0,0.000252,2]
[388340655,1759105940346,500.0,0.000252,2]
[388340656,1759105940408,365.36729041,0.000252,2]
[388340659,1759105945821,155.97394274,0.000252,2]
[388340660,1759105945841,344.02605726,0.000252,2]
[388340661,1759105946690,500.0,0.000252,2]
[388340662,1759105946805,500.0,0.000252,2]
[388340674,1759105998903,8655.98394274,0.00025201,2]
[388340675,1759105998926,1312.01605726,0.00025201,2]
[388340676,1759106030598,481.34639875,0.00020981,2]
[388340699,1759106103212,-242.49899011,0.00025201,2]
[388340700,1759106106576,200.64408211,0.00024467,2]
[388340703,1759106111886,1000.0,0.00024379,2]
[388340704,1759106112745,300.0,0.00021,2]
[388340711,1759106125100,300.0,0.00021,2]
[388340712,1759106136174,300.0,0.00021,2]
[388340727,1759106149727,-57.50100989,0.00025201,2]
[388340728,1759106149754,-300.0,0.00025201,2]
[388340729,1759106149782,-1200.0,0.00025201,2]
[388340730,1759106149808,-210.42521209,0.00025202,2]
[388340731,1759106149835,-500.0,0.00025202,2]
[388340732,1759106149861,-500.0,0.00025202,2]
[388340733,1759106149888,-500.0,0.00025202,2]
[388340734,1759106149914,-500.0,0.00025202,2]
[388340735,1759106149940,-455.0,0.00025202,2]
[388340736,1759106149966,-500.0,0.00025202,2]
[388340737,1759106149993,-54.15755604,0.00025202,2]
[388340738,1759106150082,-445.84244396,0.00025202,2]
[388340739,1759106150109,-487.9008488,0.00025202,2]
[388340740,1759106150135,-512.14276193,0.00025202,2]
[388340741,1759106150162,-500.0,0.00025202,2]
[388340742,1759106150187,-500.0,0.00025202,2]
[388340743,1759106150213,-500.0,0.00025202,2]
[388340744,1759106150239,-500.0,0.00025202,2]
[388340745,1759106150265,-500.0,0.00025202,2]
[388340746,1759106150290,-500.0,0.00025202,2]
[388340747,1759106150321,-500.0,0.00025202,2]
[388340748,1759106150538,-500.0,0.00025202,2]
[388340749,1759106150564,-406.72179437,0.00025202,2]
[388340750,1759106150590,-500.0,0.00025202,2]
[388340751,1759106150617,-500.0,0.00025202,2]
[388340752,1759106150807,-500.0,0.00025202,2]
[388340753,1759106150837,-500.0,0.00025202,2]
[388340754,1759106150864,-500.0,0.00025202,2]
[388340755,1759106150890,-500.0,0.00025202,2]
[388340756,1759106150916,-500.0,0.00025202,2]
[388340757,1759106150942,-500.0,0.00025202,2]
[388340758,1759106151104,-500.0,0.00025202,2]
[388340759,1759106151130,-500.0,0.00025202,2]
[388340760,1759106151157,-500.0,0.00025202,2]
[388340761,1759106151183,-184.32738571,0.00025202,2]
[388340762,1759106151209,-500.0,0.00025202,2]
[388340763,1759106151235,-520.56384895,0.00025202,2]
[388340764,1759106151262,-500.0,0.00025202,2]
[388340765,1759106151290,-500.0,0.00025202,2]
[388340766,1759106151321,-500.0,0.00025202,2]
[388340767,1759106151348,-390.22753068,0.00025203,2]
[388340768,1759106151532,-809.77246932,0.00025203,2]
[388340769,1759106162919,300.0,0.00025202,2]
[388340772,1759106169040,277.84618628,0.00021,2]
[388340775,1759106170711,-8426.72496135,0.00025203,2]
[388340776,1759106170730,-10000.01,0.00025203,2]
[388340777,1759106178856,-152.0,0.00024951,2]
[388340778,1759106179516,-2261.92851244,0.00024951,2]
[388340779,1759106179616,-5476.15297512,0.00025203,2]
[388340780,1759106179764,-10000.01,0.00025203,2]
[388340788,1759106194941,5000.0,0.00025203,2]
[388340791,1759106202955,5000.0,0.00025203,2]
[388340792,1759106203625,318.93633998,0.00025202,2]
[388340793,1759106203646,0.01,0.00025202,2]
[388340794,1759106203667,181.05366002,0.00025202,2]
[388340795,1759106203699,479.75425608,0.00025202,2]
[388340796,1759106203724,500.0,0.00025202,2]
[388340799,1759106205846,162.0388522,0.00025,2]
[388340800,1759106205866,13.5011478,0.00025,2]
[388340807,1759106217881,5000.0,0.00025203,2]
[388340808,1759106226474,471.02530758,0.00025205,2]
[388340809,1759106229055,300.0,0.000252,2]
[388340810,1759106242659,5000.0,0.00025205,2]
[388340811,1759106257939,1030.77,0.00025203,2]
[388340812,1759106265160,3198.21469242,0.00025205,2]
[388340813,1759106265181,1801.78530758,0.00025205,2]
[388340814,1759106287673,5000.0,0.00025205,2]
[388340815,1759106310611,3198.22469242,0.00025205,2]
[388340816,1759106310635,1801.77530758,0.00025205,2]